{"text_format":"1","workbook":"xlsx","n_sheets":4,"sheets":["Ingreso","GF-FT-43","GFI-FT-25","RETENCIÓN"],"not_rendered":{"charts":0,"images":2,"macros":1,"external_links":4,"defined_names":31,"comments":1,"pivot_tables":0},"unopened":[],"bounds":{"document_bytes":16777216,"sheet_cells":100000,"rows_first":2000,"rows_last":500,"rows_between":2000,"halvings":0,"cell_chars":16384,"cell_head_chars":4096},"cells_cut":0,"cells_raw":0,"read":"whole","date_system":"1900"}

{"sheet":"Ingreso","index":0,"n_rows":150,"n_cols":35,"rows_kept":150,"cut":false,"hidden":false,"merged":[[36,3,36,5],[109,1,109,2],[109,4,109,5],[9,3,9,5],[11,1,11,2],[11,3,11,5],[15,1,15,2],[16,1,16,2],[14,3,14,5],[12,1,12,2],[25,1,25,2],[24,1,24,2],[14,1,14,2],[51,1,51,2],[52,1,52,2],[48,1,48,2],[33,3,33,5],[10,3,10,5],[28,3,28,5],[21,3,21,5],[20,3,20,5],[19,3,19,5],[17,3,17,5],[12,3,12,5],[25,3,25,5],[26,3,26,5],[30,3,30,5],[32,3,32,5],[27,3,27,5],[31,3,31,5],[18,3,18,5],[29,3,29,5],[35,3,35,5],[34,3,34,5],[53,1,53,2],[48,3,48,5],[47,3,47,5],[36,1,36,2],[53,3,53,5],[52,3,52,5],[47,1,47,2],[44,1,44,2],[43,1,43,2],[38,1,38,2],[37,1,37,5],[46,1,46,2],[45,1,45,2],[45,3,45,5],[63,3,63,6],[51,3,51,5],[43,3,43,5],[44,3,44,5],[60,3,60,6],[59,3,59,6],[39,1,42,1],[20,1,20,2],[21,1,21,2],[29,1,29,2],[30,1,30,2],[28,1,28,2],[31,1,31,2],[33,1,33,2],[34,1,34,2],[35,1,35,2],[32,1,32,2],[10,1,10,2],[13,1,13,2],[9,1,9,2],[27,1,27,2],[18,1,18,2],[17,1,17,2],[19,1,19,2],[22,1,22,2],[23,1,23,2],[26,1,26,2],[0,3,0,7],[1,3,1,7],[2,3,2,7],[4,1,4,5],[8,1,8,2],[8,3,8,5],[7,3,7,5],[6,3,6,5],[5,3,5,5],[0,1,2,1],[5,1,5,2],[6,1,6,2],[7,1,7,2]]}
[null,"Convenciones:",null,"Casillas que solo deben diligenciarse para el primer cobro."]
[null,null,null,"Casillas que pueden ser objeto de cambio mensualmente."]
[null,null,null,"Casillas que se diligencian automaticamente."]
[]
[null,"DATOS BÁSICOS DE PROVEEDOR Y CONTRATO",null,null,null,null,null,"INSTRUCTIVO - DATOS BASICOS DEL PROVEEDOR Y CONTRATO"]
[null,"Nombre del Proveedor",null,null,null,null,null,"Registre el nombre completo o razon social del proveedor."]
[null,"NIT del Proveedor",null,null,null,null,null,"Registre el NIT con sus puntos, guiones o separadores. (P. Ej. 800.197.674-1)",null,null,null,null,null,null,1,"Un","Uno",null,{"$f":"INT((#REF!-(INT(#REF!/1000000000000000)*1000000000000000))/1000000000000)","v":{"$error":"#REF!"}},"Centenas",{"$f":"INT(S7/100)*100","v":{"$error":"#REF!"}},{"$f":"IF(AND(U7=100,U8=0,U9=0),IF(U7=0,\" \",LOOKUP(U7,O7:Q63,P7:P63)),IF(U7=0,\" \",LOOKUP(U7,O7:Q63,Q7:Q63)))","v":{"$error":"#REF!"}},null,"Billones",null,1,"Un","Uno",null,{"$f":"INT((D44-(INT(D44/1000000000000000)*1000000000000000))/1000000000000)","v":0},"Centenas",{"$f":"INT(AD7/100)*100","v":0},{"$f":"IF(AND(AF7=100,AF8=0,AF9=0),IF(AF7=0,\" \",LOOKUP(AF7,Z7:AB63,AA7:AA63)),IF(AF7=0,\" \",LOOKUP(AF7,Z7:AB63,AB7:AB63)))","v":" "},null,"Billones"]
[null,"Dirección del Proveedor",null,null,null,null,null,"Registre la dirección completa donde se ubica el proveedor.",null,null,null,null,null,null,2,"Dos","Dos",null,{"$f":"+S7-U7","v":{"$error":"#REF!"}},"Decenas",{"$f":"INT(S8/10)*10","v":{"$error":"#REF!"}},{"$f":"IF(OR(U8=10,U8=20),LOOKUP(S8,O7:Q63,Q7:Q63),IF(AND(U8=100,U9=0,U10=0),IF(U8=0,\" \",LOOKUP(U8,O7:Q63,P7:P63)),IF(U8=0,\" \",LOOKUP(U8,O7:Q63,Q7:Q63))))","v":{"$error":"#REF!"}},{"$f":"IF(U9=0,\" \",IF(AND(U8>20,U8<=90),\"y\",\" \"))","v":{"$error":"#REF!"}},null,null,2,"Dos","Dos",null,{"$f":"+AD7-AF7","v":0},"Decenas",{"$f":"INT(AD8/10)*10","v":0},{"$f":"IF(OR(AF8=10,AF8=20),LOOKUP(AD8,Z7:AB63,AB7:AB63),IF(AND(AF8=100,AF9=0,AF10=0),IF(AF8=0,\" \",LOOKUP(AF8,Z7:AB63,AA7:AA63)),IF(AF8=0,\" \",LOOKUP(AF8,Z7:AB63,AB7:AB63))))","v":" "},{"$f":"IF(AF9=0,\" \",IF(AND(AF8>20,AF8<=90),\"y\",\" \"))","v":" "}]
[null,"Teléfono del Proveedor",null,null,null,null,null,"Registre el teléfono de contacto del proveedor.",null,null,null,null,null,null,3,"Tres","Tres",null,{"$f":"+S8-U8","v":{"$error":"#REF!"}},"Unidades",{"$f":"INT(S9)","v":{"$error":"#REF!"}},{"$f":"IF(OR(U8=10,U8=20),\" \",IF(AND(U9=100,U10=0,U12=0),IF(U9=0,\" \",LOOKUP(U9,O7:Q63,P7:P63)),IF(U9=0,\" \",LOOKUP(U9,O7:Q63,P7:P63))))","v":{"$error":"#REF!"}},{"$f":"IF(AND(U7=0,U8=0,U9=1),\"Billón\",IF(SUM(U7:U9)=0,\" \",\"Billones\"))","v":{"$error":"#REF!"}},null,null,3,"Tres","Tres",null,{"$f":"+AD8-AF8","v":0},"Unidades",{"$f":"INT(AD9)","v":0},{"$f":"IF(OR(AF8=10,AF8=20),\" \",IF(AND(AF9=100,AF10=0,AF12=0),IF(AF9=0,\" \",LOOKUP(AF9,Z7:AB63,AA7:AA63)),IF(AF9=0,\" \",LOOKUP(AF9,Z7:AB63,AA7:AA63))))","v":" "},{"$f":"IF(AND(AF7=0,AF8=0,AF9=1),\"Billón\",IF(SUM(AF7:AF9)=0,\" \",\"Billones\"))","v":" "}]
[null,"Unidad Ejecutora",null,null,null,null,null,"Seleccione de la lista desplegable la Unidad Ejecutora (IDIGER o FONDIGER).",null,null,null,null,null,null,4,"Cuatro","Cuatro",null,{"$f":"INT((#REF!-(INT(#REF!/1000000000000)*1000000000000))/1000000000)","v":{"$error":"#REF!"}},"Centenas",{"$f":"INT(S10/100)*100","v":{"$error":"#REF!"}},{"$f":"IF(AND(U10=100,U12=0,U14=0),IF(U10=0,\" \",LOOKUP(U10,O7:Q63,P7:P63)),IF(U10=0,\" \",LOOKUP(U10,O7:Q63,Q7:Q63)))","v":{"$error":"#REF!"}},null,"Miles de Millones",null,4,"Cuatro","Cuatro",null,{"$f":"INT((D44-(INT(D44/1000000000000)*1000000000000))/1000000000)","v":0},"Centenas",{"$f":"INT(AD10/100)*100","v":0},{"$f":"IF(AND(AF10=100,AF12=0,AF14=0),IF(AF10=0,\" \",LOOKUP(AF10,Z7:AB63,AA7:AA63)),IF(AF10=0,\" \",LOOKUP(AF10,Z7:AB63,AB7:AB63)))","v":" "},null,"Miles de Millones"]
[null,"Actividad Económica del Proveedor",null,null,null,null,null,"Registre la actividad económica que aparece en el Registro Único Tributario RUT actualizado al año 2022"]
[null,"Tarifa de Retención por ICA del Proveedor",null,null,null,null,null,"Registre la tarifa de retención que aplica por ICA especificada en el RIT",null,null,null,null,null,null,5,"Cinco","Cinco",null,{"$f":"+S10-U10","v":{"$error":"#REF!"}},"Decenas",{"$f":"INT(S12/10)*10","v":{"$error":"#REF!"}},{"$f":"IF(OR(U12=10,U12=20),LOOKUP(S12,O7:Q63,Q7:Q63),IF(AND(U12=100,U14=0,U15=0),IF(U12=0,\" \",LOOKUP(U12,O7:Q63,P7:P63)),IF(U12=0,\" \",LOOKUP(U12,O7:Q63,Q7:Q63))))","v":{"$error":"#REF!"}},{"$f":"IF(U14=0,\" \",IF(AND(U12>20,U12<=90),\"y\",\" \"))","v":{"$error":"#REF!"}},null,null,5,"Cinco","Cinco",null,{"$f":"+AD10-AF10","v":0},"Decenas",{"$f":"INT(AD12/10)*10","v":0},{"$f":"IF(OR(AF12=10,AF12=20),LOOKUP(AD12,Z7:AB63,AB7:AB63),IF(AND(AF12=100,AF14=0,AF15=0),IF(AF12=0,\" \",LOOKUP(AF12,Z7:AB63,AA7:AA63)),IF(AF12=0,\" \",LOOKUP(AF12,Z7:AB63,AB7:AB63))))","v":" "},{"$f":"IF(AF14=0,\" \",IF(AND(AF12>20,AF12<=90),\"y\",\" \"))","v":" "}]
[null,"Régimen del Proveedor",null,null,null,null,null,"Seleccione de la lista desplegable el régimen al que pertenece el proveedor"]
[null,"Contrato No.",null,null,"Año del Contrato",null,null,"Registre el Número y Año del contrato objeto de cobro.",null,null,null,null,null,null,6,"Seis","Seis",null,{"$f":"+S12-U12","v":{"$error":"#REF!"}},"Unidades",{"$f":"INT(S14)","v":{"$error":"#REF!"}},{"$f":"IF(AND(U10=0,U12=0,U14=1),\" \",IF(AND(U7=0,U8=0,U9=0,U10=0,U12=0,U14=1),\" \",IF(OR(U12=10,U12=20),\" \",IF(AND(U14=100,U15=0,U16=0),IF(U14=0,\" \",LOOKUP(U14,O7:Q63,P7:P63)),IF(U14=0,\" \",LOOKUP(U14,O7:Q63,P7:P63))))))","v":{"$error":"#REF!"}},{"$f":"IF(AND(U10=0,U12=0,U14=1),\"Mil\",IF(SUM(U10:U14)=0,\" \",\"Mil\"))","v":{"$error":"#REF!"}},null,null,6,"Seis","Seis",null,{"$f":"+AD12-AF12","v":0},"Unidades",{"$f":"INT(AD14)","v":0},{"$f":"IF(AND(AF10=0,AF12=0,AF14=1),\" \",IF(AND(AF7=0,AF8=0,AF9=0,AF10=0,AF12=0,AF14=1),\" \",IF(OR(AF12=10,AF12=20),\" \",IF(AND(AF14=100,AF15=0,AF16=0),IF(AF14=0,\" \",LOOKUP(AF14,Z7:AB63,AA7:AA63)),IF(AF14=0,\" \",LOOKUP(AF14,Z7:AB63,AA7:AA63))))))","v":" "},{"$f":"IF(AND(AF10=0,AF12=0,AF14=1),\"Mil\",IF(SUM(AF10:AF14)=0,\" \",\"Mil\"))","v":" "}]
[null,"Valor Total de Contrato",null,null,null,null,null,"Registre el valor total del contrato objeto del cobro.",null,null,null,null,null,null,7,"Siete","Siete",null,{"$f":"INT((#REF!-(INT(#REF!/1000000000)*1000000000))/1000000)","v":{"$error":"#REF!"}},"Centenas",{"$f":"INT(S15/100)*100","v":{"$error":"#REF!"}},{"$f":"IF(AND(U15=100,U16=0,U17=0),IF(U15=0,\" \",LOOKUP(U15,O7:Q63,P7:P63)),IF(U15=0,\" \",LOOKUP(U15,O7:Q63,Q7:Q63)))","v":{"$error":"#REF!"}},null,"Millones",null,7,"Siete","Siete",null,{"$f":"INT((D44-(INT(D44/1000000000)*1000000000))/1000000)","v":0},"Centenas",{"$f":"INT(AD15/100)*100","v":0},{"$f":"IF(AND(AF15=100,AF16=0,AF17=0),IF(AF15=0,\" \",LOOKUP(AF15,Z7:AB63,AA7:AA63)),IF(AF15=0,\" \",LOOKUP(AF15,Z7:AB63,AB7:AB63)))","v":" "},null,"Millones"]
[null,"Fecha de Inicio del Contrato",null,null,null,null,null,"Registre la fecha de inicio de ejecución del contrato registrada en SECOP II.",null,null,null,null,null,null,8,"Ocho","Ocho",null,{"$f":"+S15-U15","v":{"$error":"#REF!"}},"Decenas",{"$f":"INT(S16/10)*10","v":{"$error":"#REF!"}},{"$f":"IF(OR(U16=10,U16=20),LOOKUP(S16,O7:Q63,Q7:Q63),IF(AND(U16=100,U17=0,U23=0),IF(U16=0,\" \",LOOKUP(U16,O7:Q63,P7:P63)),IF(U16=0,\" \",LOOKUP(U16,O7:Q63,Q7:Q63))))","v":{"$error":"#REF!"}},{"$f":"IF(U17=0,\" \",IF(AND(U16>20,U16<=90),\"y\",\" \"))","v":{"$error":"#REF!"}},null,null,8,"Ocho","Ocho",null,{"$f":"+AD15-AF15","v":0},"Decenas",{"$f":"INT(AD16/10)*10","v":0},{"$f":"IF(OR(AF16=10,AF16=20),LOOKUP(AD16,Z7:AB63,AB7:AB63),IF(AND(AF16=100,AF17=0,AF23=0),IF(AF16=0,\" \",LOOKUP(AF16,Z7:AB63,AA7:AA63)),IF(AF16=0,\" \",LOOKUP(AF16,Z7:AB63,AB7:AB63))))","v":" "},{"$f":"IF(AF17=0,\" \",IF(AND(AF16>20,AF16<=90),\"y\",\" \"))","v":" "}]
[null,"Fecha Final del Contrato",null,null,null,null,null,"Registre la fecha de terminación del contrato teniendo en cuenta la fecha de SECOP II y las modificaciones que este haya tenido (plazos de suspensión y reinicio del contrato) ",null,null,null,null,null,null,9,"Nueve","Nueve",null,{"$f":"+S16-U16","v":{"$error":"#REF!"}},"Unidades",{"$f":"INT(S17)","v":{"$error":"#REF!"}},{"$f":"IF(AND(U15=0,U16=0,U17=1),\"Un\",IF(AND(U10=0,U12=0,U14=0,U15=0,U16=0,U17=1),\" \",IF(OR(U16=10,U16=20),\" \",IF(AND(U17=100,U23=0,U36=0),IF(U17=0,\" \",LOOKUP(U17,O7:Q63,P7:P63)),IF(U17=0,\" \",LOOKUP(U17,O7:Q63,P7:P63))))))","v":{"$error":"#REF!"}},{"$f":"IF(AND(OR(U10>0,U12>0,U14>0),U15=0,U16=0,U17=0),\"Millones\",IF(AND(U10=0,U12=0,U14=0,U15=0,U16=0,U17=1),\"Millón\",IF(SUM(U15:U17)=0,\" \",\"Millones\")))","v":{"$error":"#REF!"}},null,null,9,"Nueve","Nueve",null,{"$f":"+AD16-AF16","v":0},"Unidades",{"$f":"INT(AD17)","v":0},{"$f":"IF(AND(AF15=0,AF16=0,AF17=1),\"Un\",IF(AND(AF10=0,AF12=0,AF14=0,AF15=0,AF16=0,AF17=1),\" \",IF(OR(AF16=10,AF16=20),\" \",IF(AND(AF17=100,AF23=0,AF36=0),IF(AF17=0,\" \",LOOKUP(AF17,Z7:AB63,AA7:AA63)),IF(AF17=0,\" \",LOOKUP(AF17,Z7:AB63,AA7:AA63))))))","v":" "},{"$f":"IF(AND(OR(AF10>0,AF12>0,AF14>0),AF15=0,AF16=0,AF17=0),\"Millones\",IF(AND(AF10=0,AF12=0,AF14=0,AF15=0,AF16=0,AF17=1),\"Millón\",IF(SUM(AF15:AF17)=0,\" \",\"Millones\")))","v":" "}]
[null,"Supervisor",null,null,null,null,null,"Registre el nombre completo del supervisor del contrato objeto de cobro.",null,null,null,null,null,null,10,"Diez","Diez",null,{"$f":"INT((#REF!-(INT(#REF!/1000000)*1000000))/1000)","v":{"$error":"#REF!"}},"Centenas",{"$f":"INT(S18/100)*100","v":{"$error":"#REF!"}},{"$f":"IF(AND(U18=100,U19=0,U20=0),IF(U18=0,\" \",LOOKUP(U18,O7:Q63,P7:P63)),IF(U18=0,\" \",LOOKUP(U18,O7:Q63,Q7:Q63)))","v":{"$error":"#REF!"}},null,"Miles",null,10,"Diez","Diez",null,{"$f":"INT((D44-(INT(D44/1000000)*1000000))/1000)","v":0},"Centenas",{"$f":"INT(AD18/100)*100","v":0},{"$f":"IF(AND(AF18=100,AF19=0,AF20=0),IF(AF18=0,\" \",LOOKUP(AF18,Z7:AB63,AA7:AA63)),IF(AF18=0,\" \",LOOKUP(AF18,Z7:AB63,AB7:AB63)))","v":" "},null,"Miles"]
[null,"Apoyo a la Supervisión",null,null,null,null,null,"Registre el nombre completo del apoyo a la supervisión del contrato objeto de cobro. (En caso de no existir apoyo a la supervisión, dejarlo en blanco)",null,null,null,null,null,null,11,"Once","Once",null,{"$f":"+S18-U18","v":{"$error":"#REF!"}},"Decenas",{"$f":"INT(S19/10)*10","v":{"$error":"#REF!"}},{"$f":"IF(OR(U19=10,U19=20),LOOKUP(S19,O7:Q63,Q7:Q63),IF(AND(U19=100,U20=0,T34=0),IF(U19=0,\" \",LOOKUP(U19,O7:Q63,P7:P63)),IF(U19=0,\" \",LOOKUP(U19,O7:Q63,Q7:Q63))))","v":{"$error":"#REF!"}},{"$f":"IF(U20=0,\" \",IF(AND(U19>20,U19<=90),\"y\",\" \"))","v":{"$error":"#REF!"}},null,null,11,"Once","Once",null,{"$f":"+AD18-AF18","v":0},"Decenas",{"$f":"INT(AD19/10)*10","v":0},{"$f":"IF(OR(AF19=10,AF19=20),LOOKUP(AD19,Z7:AB63,AB7:AB63),IF(AND(AF19=100,AF20=0,AE34=0),IF(AF19=0,\" \",LOOKUP(AF19,Z7:AB63,AA7:AA63)),IF(AF19=0,\" \",LOOKUP(AF19,Z7:AB63,AB7:AB63))))","v":" "},{"$f":"IF(AF20=0,\" \",IF(AND(AF19>20,AF19<=90),\"y\",\" \"))","v":" "}]
[null,"Área o Dependencia",null,null,null,null,null,"Registre la dependencia donde se desarrolla el objeto contractual ",null,null,null,null,null,null,12,"Doce","Doce",null,{"$f":"+S19-U19","v":{"$error":"#REF!"}},"Unidades",{"$f":"INT(S20)","v":{"$error":"#REF!"}},{"$f":"IF(AND(U18=0,U19=0,U20=1),\" \",IF(AND(U15=0,U16=0,U17=0,U18=0,U19=0,U20=1),\" \",IF(OR(U19=10,U19=20),\" \",IF(AND(U20=100,T34=0,T35=0),IF(U20=0,\" \",LOOKUP(U20,O7:Q63,P7:P63)),IF(U20=0,\" \",LOOKUP(U20,O7:Q63,P7:P63))))))","v":{"$error":"#REF!"}},{"$f":"IF(AND(U18=0,U19=0,U20=1),\"Mil\",IF(SUM(U18:U20)=0,\" \",\"Mil\"))","v":{"$error":"#REF!"}},null,null,12,"Doce","Doce",null,{"$f":"+AD19-AF19","v":0},"Unidades",{"$f":"INT(AD20)","v":0},{"$f":"IF(AND(AF18=0,AF19=0,AF20=1),\" \",IF(AND(AF15=0,AF16=0,AF17=0,AF18=0,AF19=0,AF20=1),\" \",IF(OR(AF19=10,AF19=20),\" \",IF(AND(AF20=100,AE34=0,AE35=0),IF(AF20=0,\" \",LOOKUP(AF20,Z7:AB63,AA7:AA63)),IF(AF20=0,\" \",LOOKUP(AF20,Z7:AB63,AA7:AA63))))))","v":" "},{"$f":"IF(AND(AF18=0,AF19=0,AF20=1),\"Mil\",IF(SUM(AF18:AF20)=0,\" \",\"Mil\"))","v":" "}]
[null,{"$f":"IF(D10=\"IDIGER\",\"Proyecto / Rubro\",IF(D10=\"FONDIGER\",\"Programa\",\"Proyecto / Programa / Rubro\"))","v":"Proyecto / Programa / Rubro"},null,null,null,null,null,"Seleccione de la lista desplegable el número y nombre del programa (FONDIGER) o proyecto (IDIGER) donde se generan los recursos para el pago. "]
[null,"Objeto Contractual",null,null,null,null,null,"En este campo debe transcribir el objeto contractual registrado en SECOP II."]
[null,"Registro Presupuestal (RP)_1",null,null,"Año del Registro Presupuestal_1",null,null,"Registre el número del RP y año de acuerdo a la información publicado en SECOP II, en el numeral 6 Información presupuestal.",null,null,null,null,null,null,13,"Trece","Trece",null,{"$f":"INT((#REF!-(INT(#REF!/1000)*1000))/1)","v":{"$error":"#REF!"}},"Centenas",{"$f":"INT(S23/100)*100","v":{"$error":"#REF!"}},{"$f":"IF(AND(U23=100,U24=0,U30=0),IF(U23=0,\" \",LOOKUP(U23,O7:Q63,P7:P63)),IF(U23=0,\" \",LOOKUP(U23,O7:Q63,Q7:Q63)))","v":{"$error":"#REF!"}},null,"Cientos",null,13,"Trece","Trece",null,{"$f":"INT((D44-(INT(D44/1000)*1000))/1)","v":0},"Centenas",{"$f":"INT(AD23/100)*100","v":0},{"$f":"IF(AND(AF23=100,AF24=0,AF30=0),IF(AF23=0,\" \",LOOKUP(AF23,Z7:AB63,AA7:AA63)),IF(AF23=0,\" \",LOOKUP(AF23,Z7:AB63,AB7:AB63)))","v":" "},null,"Cientos"]
[null,"Registro Presupuestal (RP)_2",null,null,"Año del Registro Presupuestal_2",null,null,"En caso de tener otro RP, registre su número y año de acuerdo a la información publicado en SECOP II, en el numeral 6 Información presupuestal.",null,null,null,null,null,null,14,"Catorce","Catorce",null,{"$f":"+S23-U23","v":{"$error":"#REF!"}},"Decenas",{"$f":"INT(S24/10)*10","v":{"$error":"#REF!"}},{"$f":"IF(OR(U24=10,U24=20),LOOKUP(S24,O7:Q63,Q7:Q63),IF(AND(U24=100,U30=0,U41=0),IF(U24=0,\" \",LOOKUP(U24,O7:Q63,P7:P63)),IF(U24=0,\" \",LOOKUP(U24,O7:Q63,Q7:Q63))))","v":{"$error":"#REF!"}},{"$f":"IF(U30=0,\" \",IF(AND(U24>20,U24<=90),\"y\",\" \"))","v":{"$error":"#REF!"}},null,null,14,"Catorce","Catorce",null,{"$f":"+AD23-AF23","v":0},"Decenas",{"$f":"INT(AD24/10)*10","v":0},{"$f":"IF(OR(AF24=10,AF24=20),LOOKUP(AD24,Z7:AB63,AB7:AB63),IF(AND(AF24=100,AF30=0,AF41=0),IF(AF24=0,\" \",LOOKUP(AF24,Z7:AB63,AA7:AA63)),IF(AF24=0,\" \",LOOKUP(AF24,Z7:AB63,AB7:AB63))))","v":" "},{"$f":"IF(AF30=0,\" \",IF(AND(AF24>20,AF24<=90),\"y\",\" \"))","v":" "}]
[null,"Registro Presupuestal (RP)_3",null,null,"Año del Registro Presupuestal_3",null,null,"En caso de tener otro RP, registre su número y año de acuerdo a la información publicado en SECOP II, en el numeral 6 Información presupuestal."]
[null,"Registro Presupuestal de Adición (RP Adición)_1",null,null,null,null,null,"Registre el número del RP y año de adición, de acuerdo a la información publicado en SECOP II, en el numeral 6 Información presupuestal "]
[null,"Registro Presupuestal de Adición (RP Adición)_2",null,null,null,null,null,"Registre el número del RP y año de adición, de acuerdo a la información publicado en SECOP II, en el numeral 6 Información presupuestal "]
[null,"Registro Presupuestal de Adición (RP Adición)_3",null,null,null,null,null,"Registre el número del RP y año de adición, de acuerdo a la información publicado en SECOP II, en el numeral 6 Información presupuestal "]
[null,"N° de Cuenta Bancaria para Consignar",null,null,null,null,null,"Registre el número de la cuenta bancaria a la cual se le debe realizar la transferencia."]
[null,"Banco","BANCO",null,null,null,null,"Registre el nombre de la entidad bancaria a la cual se le debe realizar la transferencia.",null,null,null,null,null,null,15,"Quince","Quince",null,{"$f":"+S24-U24","v":{"$error":"#REF!"}},"Unidades",{"$f":"INT(S30)","v":{"$error":"#REF!"}},{"$f":"IF(AND(U23=0,U24=0,U30=1),\"Un\",IF(AND(U18=0,U19=0,U20=0,U23=0,U24=0,U30=1),\" \",IF(OR(U24=10,U24=20),\" \",IF(AND(U30=100,U41=0,U44=0),IF(U30=0,\" \",LOOKUP(U30,O7:Q63,P7:P63)),IF(U30=0,\" \",LOOKUP(U30,O7:Q63,P7:P63))))))","v":{"$error":"#REF!"}},null,null,null,15,"Quince","Quince",null,{"$f":"+AD24-AF24","v":0},"Unidades",{"$f":"INT(AD30)","v":0},{"$f":"IF(AND(AF23=0,AF24=0,AF30=1),\"Un\",IF(AND(AF18=0,AF19=0,AF20=0,AF23=0,AF24=0,AF30=1),\" \",IF(OR(AF24=10,AF24=20),\" \",IF(AND(AF30=100,AF41=0,AF44=0),IF(AF30=0,\" \",LOOKUP(AF30,Z7:AB63,AA7:AA63)),IF(AF30=0,\" \",LOOKUP(AF30,Z7:AB63,AA7:AA63))))))","v":" "}]
[null,"Tipo de Cuenta",null,null,null,null,null,"Registre en este campo el tipo de cuenta que tiene con la entidad bancaria (Ahorros y/o corriente).",null,null,null,null,null,null,16,"Dieciséis","Dieciséis",null,null,null,null,null,null,null,null,16,"Dieciséis","Dieciséis"]
[null,"Correo electronico del Proveedor",null,null,null,null,null,"Registre la cuenta de correo electrónico de contacto del proveedor."]
[null,null,null,null,null,null,null,null,null,null,null,null,null,null,17,"Diecisiete","Diecisiete",null,null,null,null,null,null,null,null,17,"Diecisiete","Diecisiete"]
[null,null,null,null,null,null,null,null,null,null,null,null,null,null,18,"Dieciocho","Dieciocho",null,null,null,null,null,null,null,null,18,"Dieciocho","Dieciocho"]
[null,null,null,null,null,null,null,null,null,null,null,null,null,null,19,"Diecinueve","Diecinueve",null,null,null,null,null,null,null,null,19,"Diecinueve","Diecinueve"]
[null,null,null,null,null,null,null,null,null,null,null,null,null,null,20,"Veinte","Veinte",{"$f":"V7&\" \"&V8&\" \"&W8&\" \"&\" \"&V9&\" \"&W9&\" \"&V10&\" \"&V12&\" \"&W12&\" \"&\" \"&V14&\" \"&W14&\" \"&V15&\" \"&V16&\" \"&W16&\" \"&V17&\" \"&W17&\" \"&V18&\" \"&V19&\" \"&W19&\" \"&V20&\" \"&W20&\" \"&V23&\" \"&V24&\" \"&W24&\" \"&V30&\" \"&V38","v":{"$error":"#REF!"}},null,null,null,null,null,null,null,20,"Veinte","Veinte",{"$f":"AG7&\" \"&AG8&\" \"&AH8&\" \"&\" \"&AG9&\" \"&AH9&\" \"&AG10&\" \"&AG12&\" \"&AH12&\" \"&\" \"&AG14&\" \"&AH14&\" \"&AG15&\" \"&AG16&\" \"&AH16&\" \"&AG17&\" \"&AH17&\" \"&AG18&\" \"&AG19&\" \"&AH19&\" \"&AG20&\" \"&AH20&\" \"&AG23&\" \"&AG24&\" \"&AH24&\" \"&AG30&\" \"&AG38","v":"                                                  de Pesos M/Cte"}]
[null,null,null,null,null,null,null,null,null,null,null,null,null,null,21,"Veintiuno","Veintiun",null,null,null,null,null,null,null,null,21,"Veintiuno","Veintiun"]
[null,{"$f":"UPPER(\"datos de Periodo de CobrO\")","v":"DATOS DE PERIODO DE COBRO"},null,null,null,null,null,"INSTRUCTIVO - DATOS DEL PERIODO DE COBRO",null,null,null,null,null,null,22,"Veintidós","Veintidós",null,null,null,null,{"$f":"IF(T39<>0,\"de Pesos M/Cte\",IF(#REF!=1,\"Peso M/Cte\",\"Pesos M/Cte\"))","v":{"$error":"#REF!"}},null,null,null,22,"Veintidós","Veintidós",null,null,null,null,{"$f":"IF(AE39<>0,\"de Pesos M/Cte\",IF(D44=1,\"Peso M/Cte\",\"Pesos M/Cte\"))","v":"de Pesos M/Cte"}]
[null,"Fecha de Presentación de la Factura",null,null,null,null,null,"Registre la fecha de presentación de la factura.",null,null,null,null,null,null,23,"Veintitrés","Veintitrés",null,{"$f":"#REF!/1000000","v":{"$error":"#REF!"}},{"$f":"IF(S39=INT(S39),\"de Pesos M/Cte\",0)","v":{"$error":"#REF!"}},null,null,null,null,null,23,"Veintitrés","Veintitrés",null,{"$f":"D44/1000000","v":0},{"$f":"IF(AD39=INT(AD39),\"de Pesos M/Cte\",0)","v":"de Pesos M/Cte"}]
[null,"Periodo Facturado","Inicio",null,null,null,null,"Registre la fecha de inicio del periodo cobrado.",null,null,null,null,null,null,24,"Veinticuatro","Veinticuatro",null,null,null,null,null,null,null,null,24,"Veinticuatro","Veinticuatro"]
[null,null,"Fin",null,null,null,null,"Registre la fecha de terminación del periodo cobrado.",null,null,null,null,null,null,25,"Veinticinco","Veinticinco",null,null,null,null,null,null,null,null,25,"Veinticinco","Veinticinco"]
[null,null,"Inicio (después de suspensión)",null,null,null,null,"Registre la fecha de inicio del periodo cobrado, despues del reinicio."]
[null,null,"Fin (después de suspensión)",null,null,null,null,"Registre la fecha de terminación del periodo cobrado, despues del reinicio."]
[null,"Valor a Cobrar (Si es Responsable de IVA registre el valor con IVA incluido)",null,null,null,null,null,"Registre el valor a cobrar en números. En caso de ser \"Responsable de IVA\" registre el valor con IVA incluido.",null,null,null,null,null,null,26,"Veintiséis","Veintiséis",null,null,null,null,null,null,null,null,26,"Veintiséis","Veintiséis"]
[null,"Valor en Letras",null,{"$f":"IF(D44>0,TRIM(AC36),\"\")","v":""},null,null,null,"Valor a cobrar en letras (se calcula automaticamente).",null,null,null,null,null,null,27,"Veintisiete","Veintisiete",null,null,null,null,null,null,null,null,27,"Veintisiete","Veintisiete"]
[null,"No. de Factura (Aplica solo para Régimen: Responsable de IVA) ",null,null,null,null,null,"Registre el prefijo y número de la factura",null,null,null,null,null,null,28,"Veintiocho","Veintiocho",null,null,null,null,null,null,null,null,28,"Veintiocho","Veintiocho"]
[null,"Fecha de Factura (Aplica solo para Régimen: Responsable de IVA) ",null,null,null,null,null,"Registre la fecha de expedición de la factura",null,null,null,null,null,null,29,"Veintinueve","Veintinueve",null,null,null,null,null,null,null,null,29,"Veintinueve","Veintinueve"]
[null,"No. del Cobro a Presentar",null,null,null,null,null,"Registre el consecutivo del cobro, por ejemplo, si es el tercer cobro de un contrato pactado en 6 pagos el número de pago será \"3 de 6\".",null,null,null,null,null,null,30,"Treinta","Treinta",null,null,null,null,null,null,null,null,30,"Treinta","Treinta"]
[null,"No. de Pagos Pactados",null,null,null,null,null,"Registre el número de cobros pactados en el contrato.  ",null,null,null,null,null,null,40,"Cuarenta","Cuarenta",null,null,null,null,null,null,null,null,40,"Cuarenta","Cuarenta"]
[null,null,null,null,null,null,null,null,null,null,null,null,null,null,50,"Cincuenta","Cincuenta",null,null,null,null,null,null,null,null,50,"Cincuenta","Cincuenta"]
[null,null,null,null,null,null,null,null,null,null,null,null,null,null,60,"Sesenta","Sesenta",null,null,null,null,null,null,null,null,60,"Sesenta","Sesenta"]
[null,null,null,null,null,null,null,null,null,null,null,null,null,null,70,"Setenta","Setenta",null,null,null,null,null,null,null,null,70,"Setenta","Setenta"]
[null,null,null,null,null,null,null,null,null,null,null,null,null,null,80,"Ochenta","Ochenta",null,null,null,null,null,null,null,null,80,"Ochenta","Ochenta"]
[null,null,null,null,null,null,null,null,null,null,null,null,null,null,90,"Noventa","Noventa",null,null,null,null,null,null,null,null,90,"Noventa","Noventa"]
[null,null,null,null,null,null,null,null,null,null,null,null,null,null,100,"Cien","Ciento",null,null,null,null,null,null,null,null,100,"Cien","Ciento"]
[null,null,null,null,null,null,null,null,null,null,null,null,null,null,200,"Doscientos","Doscientos",null,null,null,null,null,null,null,null,200,"Doscientos","Doscientos"]
[null,null,null,null,null,null,null,null,null,null,null,null,null,null,300,"Trescientos","Trescientos",null,null,null,null,null,null,null,null,300,"Trescientos","Trescientos"]
[null,null,null,null,null,null,null,null,null,null,null,null,null,null,400,"Cuatrocientos","Cuatrocientos",null,null,null,null,null,null,null,null,400,"Cuatrocientos","Cuatrocientos"]
[null,null,null,null,null,null,null,null,null,null,null,null,null,null,500,"Quinientos","Quinientos",null,null,null,null,null,null,null,null,500,"Quinientos","Quinientos"]
[null,null,null,{"$f":"CONCATENATE(\"Yo, \",D6,\" identificado con la cédula de ciudadanía No. \",D7,\" expedida en \",D8,\" en mi condición de contratista del\",\" INSTITUTO DISTRITAL DE GESTION DE RIESGOS Y CAMBIO CLIMÁTICO NIT. 800.154.275-1, según contrato de prestación de servicios No. \",D14,\" con fecha de inicio del \",D77)","v":"Yo,  identificado con la cédula de ciudadanía No.  expedida en  en mi condición de contratista del INSTITUTO DISTRITAL DE GESTION DE RIESGOS Y CAMBIO CLIMÁTICO NIT. 800.154.275-1, según contrato de prestación de servicios No.  con fecha de inicio del  de  "},null,null,null,null,null,null,null,null,null,null,600,"Seiscientos","Seiscientos",null,null,null,null,null,null,null,null,600,"Seiscientos","Seiscientos"]
[null,null,null,", declaro bajo la gravedad del juramento, en los términos establecidos en el parágrafo 1º del artículo 4º del Decreto 2271 de 2009 y el artículo 126-1 del Estatuto Tributario, que los documentos soportes del pago de aporte obligatorio a los sistemas de salud y pensión, cuya fotocopia acompaño junto con la presente cuenta de cobro, corresponden a los ingresos provenientes exclusivamente del contrato materia del pago sujeto a retención, que mi base de cotización al sistema de seguridad social no excede de 25 salarios mínimos legales mensuales, de que trata el artículo 3 del Decreto 510 de 2003.",null,null,null,null,null,null,null,null,null,null,700,"Setecientos","Setecientos",null,null,null,null,null,null,null,null,700,"Setecientos","Setecientos"]
[null,null,null,{"$f":"CONCATENATE(\"Anexo. Soporte de pago de aporte obligatorio al sistema de salud del mes de  \",#REF!,\" de \",#REF!,\" , Soportado en la planilla de aportes \",#REF! )","v":{"$error":"#REF!"}},null,null,null,null,null,null,null,null,null,null,800,"Ochocientos","Ochocientos",null,null,null,null,null,null,null,null,800,"Ochocientos","Ochocientos"]
[null,null,null,{"$f":"CONCATENATE(\"Periodo de cobro del \",D80,\" al \",D81)","v":"Periodo de cobro del  de   al  de  "},null,null,null,null,null,null,null,null,null,null,900,"Novecientos","Novecientos",null,null,null,null,null,null,null,null,900,"Novecientos","Novecientos"]
[null,null,null,{"$f":"CONCATENATE(\"Por concepto de \",#REF!,\" al Instituto Distrital de Gestión de Riesgos y Cambio Climático, según contrato de Prestación de Servicios No. PS - \",D14,\"/\",MID(F14,3,2),\", durante el período comprendido entre el \",D80,\" al \",D81,\", la suma de \", LOWER(D45),\" . ($\",D44,\")\")","v":{"$error":"#REF!"}}]
[null,null,null,{"$f":"IF(OR(LEN(#REF!)=0,LEN(#REF!)=0,LEN(#REF!)=0,LEN(#REF!)=0),\"\",CONCATENATE(\"Favor consignar \",#REF!,\" ($\",#REF!,\")  a la Cta. \",#REF!,\" del banco \",#REF!,\" No. \",#REF!))","v":{"$error":"#REF!"}}]
[null,null,null,{"$f":"IF(AND(LEN(#REF!)=0,LEN(#REF!)=0,LEN(#REF!)=0,LEN(#REF!)=0),CONCATENATE(\"Favor consignar a la Cta. de Ahorros del banco \",D30,\" No. \",D29),CONCATENATE(\"Favor consignar el saldo a la Cta. de Ahorros del banco \",D30,\" No. \",D29))","v":{"$error":"#REF!"}}]
[null,null,null,{"$f":"IF(OR(LEN(#REF!)=0,LEN(#REF!)=0,LEN(#REF!)=0,LEN(#REF!)=0),\"\",CONCATENATE(\"Favor consignar \",#REF!,\". ($\",#REF!,\")  a la Cta.\",#REF!,\" del banco \",#REF!,\" No. \",#REF!,\" y el saldo restante a la Cta. de Ahorros del banco \",D30,\" No. \",D29))","v":{"$error":"#REF!"}}]
[]
[]
[null,null,null,{"$f":"CONCATENATE(D14,\"/\",MID(F14,1,4))","v":"/"}]
[null,null,null,{"$f":"CONCATENATE(\"Yo \",D6,\", identificado con cedula de ciudadanía Nº:  \",D7,\" de \",D8,\" , a través del presente documento manifiesto mi interés de acogerme al articulo 173 de la Ley 1450 de 2011, reglamentado mediante el Decreto Nº. 3590 del 28 de septiembre de 2011\",\", para lo cual me permito relacionar la totalidad de los contratos vigentes suscritos a la fecha, su valor mensual discriminando\",\" el impuesto a las ventas IVA si aplica, que originan pagos en el respectivo mes.\")","v":"Yo , identificado con cedula de ciudadanía Nº:   de  , a través del presente documento manifiesto mi interés de acogerme al articulo 173 de la Ley 1450 de 2011, reglamentado mediante el Decreto Nº. 3590 del 28 de septiembre de 2011, para lo cual me permito relacionar la totalidad de los contratos vigentes suscritos a la fecha, su valor mensual discriminando el impuesto a las ventas IVA si aplica, que originan pagos en el respectivo mes."}]
[null,null,null,null,null,null,null,{"$f":"IF(LEN(D39)>0,VLOOKUP(D39,numeros,2,0),\"    \")","v":"    "},null,{"$f":"MID(D79,LEN(D79)-3,4)","v":"de  "},{"$f":"VLOOKUP(MID(J72,3,2),numeros,2,0)","v":{"$error":"#N/A"}}]
[null,null,null,{"$f":"D54","v":0}]
[null,null,null,{"$f":"CONCATENATE(\"Se expide en Bogotá D.C., a los \",#REF!,\" (\",H71,\") días del mes de \",#REF!,\" de dos mil \",K71,\" (\",J71,\")\")","v":{"$error":"#REF!"}}]
[null,null,null,{"$f":"CONCATENATE(\"Se expide en Bogotá D.C., a los \",D39,\" (\",H72,\") días del mes de \",E39,\" de dos mil \",K72,\" (\",J72,\")\")","v":{"$error":"#N/A"}}]
[null,null,null,{"$f":"CONCATENATE(\"Bogotá D.C., \",D39,\" de \",E39,\" de \",J72,\"\")","v":"Bogotá D.C.,  de  de de  "}]
[null,null,"D13",{"$f":"D16&\" de \"&E16&\" \"&F16","v":" de  "},null,null,"01","uno",null,"Enero"]
[null,null,"D14",{"$f":"D17&\" de \"&E17&\" \"&F17","v":" de  "},null,null,"02","dos",null,"Febrero"]
[null,null,"D32",{"$f":"D39&\" de \"&E39&\" \"&F39","v":" de  "},null,null,"03","tres",null,"Marzo"]
[null,null,"D40",{"$f":"D40&\" de \"&E40&\" \"&F40","v":" de  "},{"$f":"D40&\"\"","v":""},null,"04","cuatro",null,"Abril"]
[null,null,"D41",{"$f":"D41&\" de \"&E41&\" \"&F41","v":" de  "},{"$f":"D41&\" de \"&E41&\" \"&F41","v":" de  "},null,"05","cinco",null,"Mayo"]
[null,null,"D42",{"$f":"D42&\" de \"&E42&\" \"&F42","v":" de  "},null,null,"06","seis",null,"Junio"]
[null,null,"D43",{"$f":"D43&\" de \"&E43&\" \"&F43","v":" de  "},null,null,"07","siete",null,"Julio"]
[null,null,null,{"$f":"#REF!&\"\"","v":{"$error":"#REF!"}},null,null,"08","ocho",null,"Agosto"]
[null,null,null,{"$f":"#REF!&\" de \"&#REF!&\" \"&#REF!","v":{"$error":"#REF!"}},null,null,"09","nueve",null,"Septiembre",null,null,"MES"]
[null,null,null,{"$f":"D47&\" de \"&E47&\" \"&F47","v":" de  "},null,null,"10","diez",null,"Octubre",null,null,"enero"]
[null,null,null,{"$f":"DAY(F25)","v":0},{"$f":"MONTH(F25)","v":1},{"$f":"YEAR(F25)","v":1900},"11","once",null,"Noviembre",null,null,"febrero"]
[null,null,null,{"$f":"D87&\" de \"&E88&\" \"&F87","v":"0 de Ene 1900"},{"$f":"IF(E87=1,\"Ene\",\nIF(E87=2,\"Feb\",\nIF(E87=3,\"Mar\",\nIF(E87=4,\"Abr\",\nIF(E87=5,\"May\",\nIF(E87=6,\"Jun\",\nIF(E87=7,\"Jul\",\nIF(E87=8,\"Ago\",\nIF(E87=9,\"Sep\",\nIF(E87=10,\"Oct\",\nIF(E87=1,\"Nov\",\nIF(E87=12,\"Dic\",\"\"))))))))))))","v":"Ene"},null,"12","doce",null,"Diciembre",null,null,"marzo"]
[null,"I",5.2199999999999998E-3,null,null,null,"13","trece",null,null,null,null,"abril"]
[null,"II",1.044E-2,null,null,null,"14","catorce",null,null,null,null,"mayo"]
[null,"III",2.436E-2,null,null,null,"15","quince",null,null,null,null,"junio"]
[null,"IV",4.3499999999999997E-2,null,null,null,"16","dieciséis",null,null,null,null,"julio"]
[null,"V",6.9599999999999995E-2,null,null,null,"17","diecisiete",null,null,null,null,"agosto"]
[null,"Prestación de servicios profesionales",null,null,null,null,"18","dieciocho",null,null,null,null,"septiembre"]
[null,"Prestación de servicios de apoyo",null,null,null,null,"19","diecinueve",null,null,null,null,"octubre"]
[null,"Proveedor",null,null,null,null,"20","veinte",null,null,null,null,"noviembre"]
[null,"SI",null,null,null,null,"21","veintiuno",null,null,null,null,"diciembre"]
[null,"NO",null,null,null,null,"22","veintidós"]
[null,"Responsable de IVA",null,null,null,null,"23","veintitrés"]
[null,"NO Responsable de IVA",null,null,null,null,"24","veinticuatro"]
[null,null,null,null,null,null,"25","veinticinco",null,null,null,null,"YEAR"]
[null,null,null,null,null,null,"26","veintiséis",null,null,null,null,2014]
[null,null,null,null,null,null,"27","veintisiete",null,null,null,null,2015]
[null,null,null,null,null,null,"28","veintiocho",null,null,null,null,2016]
[null,null,null,null,null,null,"29","veintinueve",null,null,null,null,2017]
[null,null,null,null,null,null,"30","treinta",null,null,null,null,2018]
[null,null,null,null,null,null,"31","treinta y un",null,null,null,null,2019]
[null,null,null,null,null,null,null,null,null,null,null,null,2020]
[null,null,null,null,null,null,null,null,null,null,null,null,2021]
[null,"LINEAS DE INVERSION FONDIGER",null,null,"PROYECTO IDIGER",null,null,null,null,null,null,null,2022]
[null,"3-1-100-101","Elaboración y actualización de estudios de riesgo y cambio climático. ",{"$f":"CONCATENATE(B111,\": \",C111)","v":"3-1-100-101: Elaboración y actualización de estudios de riesgo y cambio climático. "},7566,"Fortalecimiento del Conocimiento del Riesgo de Desastres y Efectos del Cambio Climático en Bogotá",null,{"$f":"CONCATENATE(E111,\": \",F111)","v":"7566: Fortalecimiento del Conocimiento del Riesgo de Desastres y Efectos del Cambio Climático en Bogotá"},null,null,null,null,2023]
[null,"3-1-100-102","Investigación sobre riesgo de desastres y efectos del cambio climático.",{"$f":"CONCATENATE(B112,\": \",C112)","v":"3-1-100-102: Investigación sobre riesgo de desastres y efectos del cambio climático."},7557,"Fortalecimiento de acciones para la reducción del riesgo y medidas de adaptación al cambio climático en Bogotá",null,{"$f":"CONCATENATE(E112,\": \",F112)","v":"7557: Fortalecimiento de acciones para la reducción del riesgo y medidas de adaptación al cambio climático en Bogotá"},null,null,null,null,2024]
[null,"3-1-100-103","Monitoreo del riesgo, de los fenómenos amenazantes y del cambio climático y sus efectos.","3-1-100-103: Monitoreo del riesgo, de los fenómenos amenazantes y del cambio climático y sus efectos.",7558,"Fortalecimiento y modernización de la gestión institucional del IDIGER en Bogotá",null,"7558: Fortalecimiento y modernización de la gestión institucional del IDIGER en Bogotá",null,null,null,null,2025]
[null,"3-1-100-104","Tecnologías de la Información y las Comunicaciones. ","3-1-100-104: Tecnologías de la Información y las Comunicaciones. ",7559,"Fortalecimiento al Manejo de Emergencias, Calamidades y/o Desastres para Bogotá",null,"7559: Fortalecimiento al Manejo de Emergencias, Calamidades y/o Desastres para Bogotá",null,null,null,null,2026]
[null,"3-1-200-202","Estructura Ecológica Principal de Bogotá","3-1-200-202: Estructura Ecológica Principal de Bogotá",8049," Incremento de las acciones de reducción del riesgo y adaptación al cambio climático en las unidades de Planeamiento Local UPL, que cuenten con análisis de riesgo en Bogotá D.C.",null,"8049: Incremento de las acciones de reducción del riesgo y adaptación al cambio climático en las unidades de Planeamiento Local UPL, que cuenten con análisis de riesgo en Bogotá D.C."]
[null,"3-1-200-204","Programa de transformación de las zonas de riesgos en suelos de protección","3-1-200-204: Programa de transformación de las zonas de riesgos en suelos de protección",8056," Generación de acciones para la reducción de la condición de vulnerabilidad de las familias ubicadas en zona de alto riesgo no mitigable en la ciudad de Bogotá D.C",null,"8056: Generación de acciones para la reducción de la condición de vulnerabilidad de las familias ubicadas en zona de alto riesgo no mitigable en la ciudad de Bogotá D.C"]
[null,"3-1-200-205","Reasentamiento de Familias en Riesgo","3-1-200-205: Reasentamiento de Familias en Riesgo",8062," Optimización del proceso de manejo de emergencias y desastres en Bogotá D.C.",null,"8062: Optimización del proceso de manejo de emergencias y desastres en Bogotá D.C."]
[null,"3-2-100-101","Preparación interinstitucional para la respuesta a emergencias","3-2-100-101: Preparación interinstitucional para la respuesta a emergencias",8065," Fortalecimiento de la gobernanza del Riesgo y Adaptación al Cambio Climático en la Ciudad de Bogotá D.C.",null,"8065: Fortalecimiento de la gobernanza del Riesgo y Adaptación al Cambio Climático en la Ciudad de Bogotá D.C."]
[null,"3-2-100-102","Preparación comunitaria y del sector privado para la respuesta a emergencias.","3-2-100-102: Preparación comunitaria y del sector privado para la respuesta a emergencias.",8076," Generación de Conocimiento del Riesgo de Desastres y los Efectos del Cambio Climático en Bogotá D.C.",null,"8076: Generación de Conocimiento del Riesgo de Desastres y los Efectos del Cambio Climático en Bogotá D.C."]
[null,"3-2-200-000","Atención integral, oportuna, eficiente y eficaz de las situaciones de emergencia","3-2-200-000: Atención integral, oportuna, eficiente y eficaz de las situaciones de emergencia",8079," Implementación de acciones de fortalecimiento Institucional para mejorar el desempeño institucional del IDIGER en el Distrito Capital Bogotá D.C",null,"8079: Implementación de acciones de fortalecimiento Institucional para mejorar el desempeño institucional del IDIGER en el Distrito Capital Bogotá D.C"]
[null,"3-2-200-201","Atención integral, oportuna, eficiente y eficaz de las situaciones de emergencia","3-2-200-201: Atención integral, oportuna, eficiente y eficaz de las situaciones de emergencia",8235," Fortalecimiento de la capacidad institucional de la entidad coordinadora del Sistema Distrital de Gestión de Riesgos y Cambio Climático en las instancias locales de Bogotá D.C.",null,"8235: Fortalecimiento de la capacidad institucional de la entidad coordinadora del Sistema Distrital de Gestión de Riesgos y Cambio Climático en las instancias locales de Bogotá D.C."]
[null,"3-3-100-101","Gestión de ecosistemas estratégicos y áreas de interés ambiental para Bogotá y la Región ","3-3-100-101: Gestión de ecosistemas estratégicos y áreas de interés ambiental para Bogotá y la Región ",null,null,null,"Funcionamiento"]
[null,"3-3-100-102","Seguridad y resiliencia alimentaria","3-3-100-102: Seguridad y resiliencia alimentaria"]
[null,"3-3-100-103","Ordenamiento territorial y Ecourbanismo para la adaptación.","3-3-100-103: Ordenamiento territorial y Ecourbanismo para la adaptación."]
[null,"3-3-100-104","Protección del acuífero de la Sabana de Bogotá","3-3-100-104: Protección del acuífero de la Sabana de Bogotá"]
[null,"3-3-100-105","Recuperación de la cuenca del río Bogotá","3-3-100-105: Recuperación de la cuenca del río Bogotá"]
[null,"3-3-100-106","Gestión integral del agua para la adaptación.","3-3-100-106: Gestión integral del agua para la adaptación."]
[null,"3-3-100-107","Resiliencia en salud por cambio climático","3-3-100-107: Resiliencia en salud por cambio climático"]
[null,"3-3-200-201","Participación social y comunitaria para la gestión de riesgos y cambio climático","3-3-200-201: Participación social y comunitaria para la gestión de riesgos y cambio climático"]
[null,"3-3-300-301","Apropiación social y cultural para la reducción del riesgo y la adaptación al cambio climático.","3-3-300-301: Apropiación social y cultural para la reducción del riesgo y la adaptación al cambio climático."]
[null,"3-3-400- 401","Movilidad sostenible ","3-3-400- 401: Movilidad sostenible "]
[null,"3-3-400- 402","Gestión Integral de Residuos.","3-3-400- 402: Gestión Integral de Residuos."]
[null,"3-3-400- 403","Eficiencia energética","3-3-400- 403: Eficiencia energética"]
[null,"3-3-400- 404","Construcción sostenible","3-3-400- 404: Construcción sostenible"]
[null,"3-4-100-101","Reglamentación del uso del suelo por amenaza y riesgo.","3-4-100-101: Reglamentación del uso del suelo por amenaza y riesgo."]
[null,"3-4-100-102","Reducción del riesgo por incendios forestales","3-4-100-102: Reducción del riesgo por incendios forestales"]
[null,"3-4-100-103","Sector productivo resiliente","3-4-100-103: Sector productivo resiliente"]
[null,"3-4-100-104","Obras de mitigación del riesgo.","3-4-100-104: Obras de mitigación del riesgo."]
[null,"3-4-100-105","Reasentamiento de familias en riesgo y gestión predial.","3-4-100-105: Reasentamiento de familias en riesgo y gestión predial."]
[null,"3-4-100-106","Reducción del riesgo tecnológico","3-4-100-106: Reducción del riesgo tecnológico"]
[null,"3-4-100-107","Reducción del riesgo por aglomeraciones de público.","3-4-100-107: Reducción del riesgo por aglomeraciones de público."]
[null,"3-4-200-201","Reducción del riesgo sísmico en vivienda, edificaciones indispensables y de atención a la comunidad.","3-4-200-201: Reducción del riesgo sísmico en vivienda, edificaciones indispensables y de atención a la comunidad."]
[null,"3-4-200-202","Reducción de la vulnerabilidad funcional de los servicios públicos y de movilidad.","3-4-200-202: Reducción de la vulnerabilidad funcional de los servicios públicos y de movilidad."]
[null,"3-4-300-301","Participación y apropiación social, comunitaria y cultural para la gestión del riesgo y cambio climático","3-4-300-301: Participación y apropiación social, comunitaria y cultural para la gestión del riesgo y cambio climático"]
[null,"3-4-300-302","Educación para la gestión del riesgo y cambio climático","3-4-300-302: Educación para la gestión del riesgo y cambio climático"]
[null,"3-4-300-303","Comunicación para la gestión del riesgo y cambio climático","3-4-300-303: Comunicación para la gestión del riesgo y cambio climático"]
[null,"3-4-400-401","Fortalecimiento del Sistema Distrital de Gestión de Riesgos y Cambio Climático.","3-4-400-401: Fortalecimiento del Sistema Distrital de Gestión de Riesgos y Cambio Climático."]
[null,"3-4-400-402","Gestión y promoción de alianzas y cooperación","3-4-400-402: Gestión y promoción de alianzas y cooperación"]
[null,"3-5-100-101","Preparación para facilitar la recuperación","3-5-100-101: Preparación para facilitar la recuperación"]
[null,"3-6-100-101","Estrategia de Protección Financiera.","3-6-100-101: Estrategia de Protección Financiera."]

{"sheet":"GF-FT-43","index":1,"n_rows":36,"n_cols":30,"rows_kept":36,"cut":false,"hidden":false,"merged":[[42,3,42,6],[35,0,35,31],[36,0,36,31],[32,2,32,4],[27,1,27,30],[32,5,32,29],[33,7,33,15],[33,16,33,18],[33,19,33,29],[28,1,28,17],[29,1,29,17],[28,18,28,29],[29,18,29,30],[25,2,25,3],[17,23,17,25],[17,1,17,15],[17,26,17,30],[17,20,17,22],[25,17,25,19],[24,1,24,7],[21,1,21,30],[22,1,22,7],[23,1,23,30],[21,43,21,47],[25,4,25,11],[25,12,25,16],[25,20,25,21],[25,22,25,30],[0,0,0,31],[1,1,4,7],[1,25,1,30],[2,25,2,30],[3,25,3,30],[4,25,4,30],[1,8,4,24],[5,1,5,30],[7,1,7,24],[6,1,6,24],[6,25,7,26],[6,27,7,27],[6,28,7,28],[6,29,7,30],[13,1,13,12],[12,13,12,24],[13,13,13,24],[18,1,18,13],[20,5,20,8],[20,11,20,29],[17,17,17,19],[15,1,15,30],[13,25,13,30],[9,1,9,24],[8,1,8,24],[8,25,8,26],[8,27,8,30],[9,25,9,26],[9,27,9,30],[11,1,11,12],[11,13,11,24],[10,25,10,30],[11,25,11,30],[12,1,12,12],[12,25,12,30],[10,1,10,12],[10,13,10,24]]}
[]
[null,null,null,null,null,null,null,null,"AUTORIZACIÓN DE PAGOS PARA PROVEEDORES",null,null,null,null,null,null,null,null,null,null,null,null,null,null,null,null,"Código: GF-FT-43"]
[null,null,null,null,null,null,null,null,null,null,null,null,null,null,null,null,null,null,null,null,null,null,null,null,null,"Versión: 2"]
[null,null,null,null,null,null,null,null,null,null,null,null,null,null,null,null,null,null,null,null,null,null,null,null,null,"Página: 1 de 1"]
[null,null,null,null,null,null,null,null,null,null,null,null,null,null,null,null,null,null,null,null,null,null,null,null,null,"Vigente desde: 24-04-2023"]
[]
[null,{"$f":"IF(AND(Ingreso!D10=\"IDIGER\",Ingreso!D21=\"\"),\"\",\nIF(AND(Ingreso!D10=\"IDIGER\",Ingreso!D21<>\"Funcionamiento\"),\"1. PROYECTO:\",\nIF(AND(Ingreso!D10=\"IDIGER\",Ingreso!D21=\"Funcionamiento\"),\"1. RUBRO:\",\nIF(Ingreso!D10=\"FONDIGER\",\"1. PROGRAMA:\",\"\"))))","v":""},null,null,null,null,null,null,null,null,null,null,null,null,null,null,null,null,null,null,null,null,null,null,null,"Pago No. ",null,{"$f":"Ingreso!D48","v":0},"de",{"$f":"Ingreso!D49","v":0}]
[null,{"$f":"Ingreso!D21","v":0}]
[null,"2. OBJETO:",null,null,null,null,null,null,null,null,null,null,null,null,null,null,null,null,null,null,null,null,null,null,null,"R.P.",null,"R.P. Adición"]
[null,{"$f":"Ingreso!D22","v":0},null,null,null,null,null,null,null,null,null,null,null,null,null,null,null,null,null,null,null,null,null,null,null,{"$f":"CONCATENATE(Ingreso!D23,\" del \",Ingreso!F23,\"\n \",Ingreso!D24,\" del \",Ingreso!F24,\"\n \",Ingreso!D25,\" del \",Ingreso!F25)","v":" del \n  del \n  del "},null,{"$f":"CONCATENATE(Ingreso!D26,\"\n\",Ingreso!D27,\"\n\",Ingreso!D28)","v":"\n\n"}]
[null,"3. NOMBRE SUPERVISOR:",null,null,null,null,null,null,null,null,null,null,null,"3.1 NOMBRE DEL APOYO DEL SUPERVISOR:",null,null,null,null,null,null,null,null,null,null,null,"Actividad Económica"]
[null,{"$f":"Ingreso!D18","v":0},null,null,null,null,null,null,null,null,null,null,null,{"$f":"Ingreso!D19","v":0},null,null,null,null,null,null,null,null,null,null,null,{"$f":"Ingreso!D11","v":0}]
[null,"4. FECHA DE INICIO DEL CONTRATO:",null,null,null,null,null,null,null,null,null,null,null,"5. FECHA DE TERMINACIÓN DEL CONTRATO:",null,null,null,null,null,null,null,null,null,null,null,"Tarifa de Retención ICA"]
[null,{"$f":"Ingreso!D77","v":" de  "},null,null,null,null,null,null,null,null,null,null,null,{"$f":"Ingreso!D78","v":" de  "},null,null,null,null,null,null,null,null,null,null,null,{"$f":"Ingreso!D12","v":0}]
[]
[null,"CERTIFICACIÓN"]
[]
[null,"Actuando en calidad de supervisor del contrato de proveedor identificado bajo el ",null,null,null,null,null,null,null,null,null,null,null,null,null,null,"N°",{"$f":"Ingreso!D14","v":0},null,null,"del año:",null,null,{"$f":"Ingreso!F14","v":0},null,null,"certifico que,"]
[null,{"$f":"Ingreso!D6","v":0},null,null,null,null,null,null,null,null,null,null,null,null,"identificado con el NIT: ",null,null,null,null,{"$f":"Ingreso!D7","v":0},"cumplió a satisfacción con el objeto contractual descrito"]
[null,"anteriormente. Con base en lo anterior, autorizo efectuar el pago",null,null,null,null,null,null,null,null,null,null,null,{"$f":"IF(Ingreso!D13=\"Responsable de IVA\",CONCATENATE(\"de la factura No. \",Ingreso!D46,\" del \",Ingreso!D86),IF(Ingreso!D13=\"NO Responsable de IVA\",CONCATENATE(\"del documento equivalente No.   \",Ingreso!D48,\"   de   \",Ingreso!D49),\"\"))","v":""},null,null,null,null,null,null,{"$f":"IF(Ingreso!D13=\"Responsable de IVA\",CONCATENATE(\"presentada el \",Ingreso!D79),IF(Ingreso!D13=\"NO Responsable de IVA\",CONCATENATE(\"presentado el \",Ingreso!D79),\"\"))","v":""}]
[null,"por valor de",null,null,null,{"$f":"Ingreso!D44","v":0},null,null,null,"(en letras)",null,{"$f":"Ingreso!D45","v":""}]
[null,{"$f":"IF(OR(Ingreso!D42=0,Ingreso!E42=0,Ingreso!F42=0,Ingreso!D43=0,Ingreso!E43=0,Ingreso!F43=0),CONCATENATE(\"perteneciente al periodo del \",Ingreso!D80,\" al \",Ingreso!E81,\".\"),CONCATENATE(\"perteneciente al periodo del \",Ingreso!D80,\" al \",Ingreso!E81,\", y al periodo del \",Ingreso!D82,\" al \",Ingreso!D83,\".\"))","v":"perteneciente al periodo del  de   al  de  ."}]
[null,"6. OBSERVACIONES:"]
[]
[null,"7. EFECTUAR PAGO EN:"]
[null,null,"Banco",null,{"$f":"Ingreso!D30","v":0},null,null,null,null,null,null,null,"Tipo de cuenta",null,null,null,null,{"$f":"Ingreso!D31","v":0},null,null,"No.",null,{"$f":"Ingreso!D29","v":0}]
[]
[null,{"$f":"IFERROR(Ingreso!D75,\"\")","v":""}]
[null,{"$f":"Ingreso!D18","v":0},null,null,null,null,null,null,null,null,null,null,null,null,null,null,null,null,{"$f":"Ingreso!D19","v":0}]
[null,"8. FIRMA DEL SUPERVISOR",null,null,null,null,null,null,null,null,null,null,null,null,null,null,null,null,"9. FIRMA DEL APOYO DEL SUPERVISOR"]
[]
[null,"10. EN CASO DE PRESENTARSE INCONSISTENCIAS INFORMAR A:"]
[null,null,"Dirección:",null,null,{"$f":"Ingreso!D8","v":0}]
[null,null,"Teléfono / extensión:",null,null,null,null,{"$f":"Ingreso!D9","v":0},null,null,null,null,null,null,null,null,"e-mail: ",null,null,{"$f":"Ingreso!D32","v":0}]
[]
["Nota: Si este documento se encuentra impreso se considera Copia no Controlada. La versión vigente está publicada en el sitio web del Instituto Distrital de Gestión de Riesgos y Cambio Climático"]

{"sheet":"GFI-FT-25","index":2,"n_rows":40,"n_cols":39,"rows_kept":40,"cut":false,"hidden":true,"merged":[[38,0,38,11],[38,12,38,23],[38,24,38,30],[39,0,39,11],[39,12,39,23],[39,24,39,30],[35,1,35,21],[24,2,24,31],[24,32,24,33],[24,34,24,35],[27,1,27,9],[27,10,27,15],[27,16,27,20],[27,21,27,24],[27,25,27,35],[26,1,26,35],[32,1,32,20],[33,1,33,3],[33,4,33,20],[34,1,34,2],[34,3,34,21],[22,2,22,31],[22,32,22,33],[22,34,22,35],[23,2,23,31],[23,32,23,33],[23,34,23,35],[20,2,20,31],[20,32,20,33],[20,34,20,35],[21,2,21,31],[21,32,21,33],[21,34,21,35],[18,2,18,31],[18,32,18,33],[18,34,18,35],[19,2,19,31],[19,32,19,33],[19,34,19,35],[16,2,16,31],[16,32,16,33],[16,34,16,35],[17,2,17,31],[17,32,17,33],[17,34,17,35],[15,32,15,33],[15,34,15,35],[5,5,5,9],[5,11,5,12],[6,1,6,17],[3,25,3,30],[3,31,3,35],[3,38,3,42],[5,1,5,2],[14,1,14,35],[1,1,3,4],[1,5,3,24],[1,25,1,30],[1,31,1,35],[1,38,1,42],[2,25,2,30],[2,31,2,35],[2,38,2,42]]}
[]
[null,null,null,null,null,"CERTIFICADO PARA LA RETENCIÓN EN LA FUENTE",null,null,null,null,null,null,null,null,null,null,null,null,null,null,null,null,null,null,null,"CÓDIGO",null,null,null,null,null,"GFI-FT-25",null,null,null,null,null,null,"GFI-FT-01"]
[null,null,null,null,null,null,null,null,null,null,null,null,null,null,null,null,null,null,null,null,null,null,null,null,null,"VERSIÓN",null,null,null,null,null,1,null,null,null,null,null,null,6]
[null,null,null,null,null,null,null,null,null,null,null,null,null,null,null,null,null,null,null,null,null,null,null,null,null,"FECHA DE REVISIÓN",null,null,null,null,null,"2014-10-10",null,null,null,null,null,null,"2014-10-06"]
[]
[null,"Bogotá,",null,{"$f":"Ingreso!G72","v":0},"de",{"$f":"Ingreso!I72","v":0},null,null,null,null,"de ",{"$f":"Ingreso!J72","v":"de  "}]
[null,"Bogotá, 06 de Octubre de  2016"]
[]
[null,"Señores"]
[null,"Instituto Distrital de Gestión de Riesgos y Cambio Climático- IDIGER"]
[null,"Ciudad. "]
[]
[null,"Apreciados señores:"]
[]
[null,"Para efectos de determinar la categoría tributaria a que pertenezco de acuerdo con lo previsto en el artículo 329 del Estatuto Tributario, artículo 1º del Decreto 1070 de 2013 y artículo 6º del Decreto 3032 de 2013, me permito certificar bajo la gravedad de juramento, lo siguiente:"]
[null,null,null,null,null,null,null,null,null,null,null,null,null,null,null,null,null,null,null,null,null,null,null,null,null,null,null,null,null,null,null,null,"Si",null,"No "]
[null,1,"Soy persona natural residente en Colombia. ",null,null,null,null,null,null,null,null,null,null,null,null,null,null,null,null,null,null,null,null,null,null,null,null,null,null,null,null,null,"x"]
[null,2,"Mis ingresos en el año gravable 2015 provienen de la prestación de servicios de manera personal o del desarrollo de una actividad económica por cuenta y riesgo del empleador o contratante, en una proporción igual o superior a un 80% del total de mis ingresos percibidos en dicho período fiscal.",null,null,null,null,null,null,null,null,null,null,null,null,null,null,null,null,null,null,null,null,null,null,null,null,null,null,null,null,null,"x"]
[null,3,"Mis ingresos en el año gravable 2015 provienen de la prestación de servicios personales mediante el ejercicio de profesiones liberales o de la prestación de servicios técnicos que no requieran la utilización de materiales o insumos especializados, o de maquinaria o equipo especializado, en una proporción igual o superior a un 80% del total de mis ingresos percibidos en dicho período fiscal.",null,null,null,null,null,null,null,null,null,null,null,null,null,null,null,null,null,null,null,null,null,null,null,null,null,null,null,null,null,"x"]
[null,4,"Mis ingresos en el año gravable 2015 provienen de las actividades desarrolladas en los dos ítem anteriores (2 y 3) , en una proporción igual o superior a un 80% del total de mis ingresos percibidos en dicho periodo fiscal.",null,null,null,null,null,null,null,null,null,null,null,null,null,null,null,null,null,null,null,null,null,null,null,null,null,null,null,null,null,"x"]
[null,5,"Durante el año gravable inmediatamente anterior presté servicios técnicos que requirieron de materiales o insumos especializados, o maquinaria y equipo especializada, cuyo costo representa menos del 25% del total de los ingresos percibidos por concepto de servicios técnicos o no generó costos.",null,null,null,null,null,null,null,null,null,null,null,null,null,null,null,null,null,null,null,null,null,null,null,null,null,null,null,null,null,null,null,"x"]
[null,6,"En el año inmediatamente anterior desarrollé alguna de las actividades señaladas en el artículo 340 del Estatuto Tributario (Actividades deportivas y otras actividades de esparcimiento, Agropecuario, silvicultura y pesca, Comercio al por mayor, Comercio al por menor, Comercio de vehículos automotores, accesorios y productos conexos, Construcción, Electricidad, gas y vapor, Fabricación de productos minerales y otros , Fabricación de sustancias químicas, Industria de la madera, corcho y papel, Manufactura alimentos, Manufactura textiles, prendas de vestir y cuero, Minería, Servicio de transporte, almacenamiento y comunicaciones, Servicios de hoteles, restaurantes y similares, Servicios financieros).",null,null,null,null,null,null,null,null,null,null,null,null,null,null,null,null,null,null,null,null,null,null,null,null,null,null,null,null,null,null,null,"x"]
[null,7,"En caso que la respuesta del numeral anterior sea afirmativa, el desarrollo de una de las actividades me generó más del 80% de mis ingresos.",null,null,null,null,null,null,null,null,null,null,null,null,null,null,null,null,null,null,null,null,null,null,null,null,null,null,null,null,null,null,null,"x"]
[null,8,"Mis ingresos totales en el año gravable 2015 superaron los 1,400 UVT",null,null,null,null,null,null,null,null,null,null,null,null,null,null,null,null,null,null,null,null,null,null,null,null,null,null,null,null,null,"x"]
[null,9,"Estoy obligado a presentar declaración de renta por el año gravable inmediatamente anterior.",null,null,null,null,null,null,null,null,null,null,null,null,null,null,null,null,null,null,null,null,null,null,null,null,null,null,null,null,null,"x"]
[]
[null,"Esta certificación se expide a los cinco (06) días del mes de Octubre del año dos mil diecises (2016)"]
[null,"Esta certificación se expide a los ",null,null,null,null,null,null,null,null,{"$f":"CONCATENATE(D6,\" (\",Ingreso!H72,\")\")","v":"0 (    )"},null,null,null,null,null,"días del mes de  ",null,null,null,null,{"$f":"F6","v":0},null,null,null,{"$f":"CONCATENATE(\"del año dos mil \",Ingreso!K72,\" \",Ingreso!J72)","v":{"$error":"#N/A"}}]
[]
[null,"Cordialmente, "]
[]
[]
[]
[null,"Nombre:",null,null,{"$f":"Ingreso!D6","v":0}]
[null,"Cédula:",null,{"$f":"RETENCIÓN!A32","v":"CC. No.   de "}]
[]
[]
[]
["ELABORADO POR",null,null,null,null,null,null,null,null,null,null,null,"REVISADO POR",null,null,null,null,null,null,null,null,null,null,null,"APROBADO POR"]
["SANDRA CAYCEDO MOYANO\nProfesional Planeación Estratégica - DG (Pl)",null,null,null,null,null,null,null,null,null,null,null,"JOSE LEONARDO MILLAN \nProfesional Planeación Estratégica - DG (Pl)\n\nCLAUDIA CECILIA SUNA LADINO \nCoordinación de Gestión de Pagos",null,null,null,null,null,null,null,null,null,null,null,"CAROLINA ABUSAID GRAÑA\nSubdirector Corporativo y Asuntos Disciplinarios \n\nDAVID VALDÉS CRUZ  \nAsesor de Planeación Estratégica"]

{"sheet":"RETENCIÓN","index":3,"n_rows":103,"n_cols":5,"rows_kept":103,"cut":false,"hidden":true,"merged":[[102,0,104,22],[36,0,36,22],[31,0,31,22],[33,0,35,22],[1,4,1,12],[4,0,4,22],[5,0,5,22],[7,0,22,22],[24,0,26,22],[30,0,30,22],[28,7,29,15]]}
[]
["Bogotá D.C., ",null,null,null,{"$f":"Ingreso!D79","v":" de  "}]
[]
["Señores"]
["INSTITUTO DISTRITAL DE GESTION DE RIESGOS Y CAMBIO CLIMÁTICO"]
["NIT. 800.154.275-1"]
[]
[{"$f":"CONCATENATE(Ingreso!D60,Ingreso!D61)","v":"Yo,  identificado con la cédula de ciudadanía No.  expedida en  en mi condición de contratista del INSTITUTO DISTRITAL DE GESTION DE RIESGOS Y CAMBIO CLIMÁTICO NIT. 800.154.275-1, según contrato de prestación de servicios No.  con fecha de inicio del  de  , declaro bajo la gravedad del juramento, en los términos establecidos en el parágrafo 1º del artículo 4º del Decreto 2271 de 2009 y el artículo 126-1 del Estatuto Tributario, que los documentos soportes del pago de aporte obligatorio a los sistemas de salud y pensión, cuya fotocopia acompaño junto con la presente cuenta de cobro, corresponden a los ingresos provenientes exclusivamente del contrato materia del pago sujeto a retención, que mi base de cotización al sistema de seguridad social no excede de 25 salarios mínimos legales mensuales, de que trata el artículo 3 del Decreto 510 de 2003."}]
[]
[]
[]
[]
[]
[]
[]
[]
[]
[]
[]
[]
[]
[]
[]
["Cordialmente"]
[]
[]
[]
[]
[]
[]
[{"$f":"#REF!","v":{"$error":"#REF!"}}]
[{"$f":"CONCATENATE(\"CC. No.  \",Ingreso!D7,\" de \",Ingreso!D8)","v":"CC. No.   de "}]
[]
[{"$f":"Ingreso!D62","v":{"$error":"#REF!"}}]
[]
[]
[]
[]
[]
[]
[]
[]
[]
[]
[]
[]
[]
[]
[]
[]
[]
[]
[]
[]
[]
[]
[]
[]
[]
[]
[]
[]
[]
[]
[]
[]
[]
[]
[]
[]
[]
[]
[]
[]
[]
[]
[]
[]
[]
[]
[]
[]
[]
[]
[]
[]
[]
[]
[]
[]
[]
[]
[]
[]
[]
[]
[]
[]
[]
[]
[]
[]
["Anexo. Soporte de pago de aporte obligatorio al sistema de salud del mes de junio de 2021 según planillas 7790846876 - 7790846876."]